Cogmind - Beta 13 X1 @@@ ROGUE MODE // 2023.08.27 @ 21:33:34 Player: VR-DUX Result: Destroyed by S-10 Pest with Light Assault Rifle Performance ------------- Evolutions (0) 0 Regions Visited (2) 400 Robots Destroyed (28) 140 Value Destroyed (328) 328 Prototype IDs (1) 20 Alien Tech Used (0) 0 Bonus (0) 0 TOTAL SCORE: 888 Bonus ------- None Cogmind --------- Core Integrity 0/250 Matter 300/300 Energy 140/140 System Corruption 0% Temperature Cool (6) Movement Treading (240) Ox1 Location -10/Mines Parts ------- > --- POWER (1) -------- Light Deuterium Engine > --- PROPULSION (2) --- Light Treads Light Treads > --- UTILITY (2) ------ High-capacity Storage Unit Structural Scanner > --- WEAPON (2) ------- Medium Laser Heavy Hammer > --- INVENTORY (20) --- Light Ion Engine Light Treads Wheel Wheel Wheel Wheel Wheel Improved Flight Unit Improved Flight Unit Improved Flight Unit Small Storage Unit Medium Storage Unit Large Storage Unit Large Matter Pod (150) Structural Scanner ECM Suite EM Pulse Gun Beam Rifle Great Maul Scythe Peak State ------------ > --- POWER ------------ Light Deuterium Engine > --- PROPULSION ------- Wheel Wheel > --- UTILITY ---------- High-capacity Storage Unit Structural Scanner > --- WEAPON ----------- Medium Laser Heavy Hammer > --- INVENTORY -------- Light Ion Engine Light Treads Light Treads Light Treads Wheel Wheel Wheel Improved Flight Unit Improved Flight Unit Improved Flight Unit Small Storage Unit Medium Storage Unit Large Storage Unit Large Matter Pod Structural Scanner ECM Suite EM Pulse Gun Beam Rifle Great Maul Scythe [Rating: 13] Favorites ----------- Power Light Ion Engine Engine Light Ion Engine Propulsion Light Treads Treads Light Treads Leg Aluminum Leg Wheel Wheel Flight Unit Improved Flight Unit Utility High-capacity Storage Unit Device Structural Scanner Storage High-capacity Storage Unit Weapon Heavy Hammer Energy Gun Medium Laser Ballistic Gun Assault Rifle Ballistic Cannon Improved Light Cannon Impact Weapon Heavy Hammer Build | -11 -10 -10 ------- Run | Jun Mat Min Slots Evolved . | . . . Power . | . . . Propulsion . | . . . Utility . | . . . Weapon . | . . . Parts Attached 34 | . 31 3 Power 4 | . 3 1 Engine 4 | . 3 1 Core . | . . . Reactor . | . . . Propulsion 18 | . 16 2 Treads 10 | . 8 2 Leg . | . . . Wheel 7 | . 7 . Hover . | . . . Flight 1 | . 1 . Utility 4 | . 4 . Device 3 | . 3 . Storage 1 | . 1 . Processor . | . . . Hackware . | . . . Protection . | . . . Artifact . | . . . Weapon 8 | . 8 . Energy Gun 2 | . 2 . Energy Cannon . | . . . Ballistic Gun 2 | . 2 . Ballistic Cannon 2 | . 2 . Launcher . | . . . Special Weapon . | . . . Impact Weapon 2 | . 2 . Slashing Weapon . | . . . Piercing Weapon . | . . . Special Melee Weapon . | . . . Unidentified Prototypes 1 | . 1 . Parts Lost 7 | . 7 . Power 1 | . 1 . Propulsion 2 | . 2 . Utility 1 | . 1 . Weapon 3 | . 3 . Highest Loss Streak 7 | . 7 . To Critical Strikes . | . . . Average Slot Usage (%) 96 | . 95 100 Engine 13 | . 13 14 Treads 12 | . 7 20 Leg 1 | . 2 . Wheel 12 | . 16 7 Device 10 | . 8 14 Storage 15 | . 16 14 Energy Gun 6 | . 1 14 Ballistic Gun 6 | . 10 . Ballistic Cannon 3 | . 4 . Impact Weapon 11 | . 10 14 Naked Turns . | . . . Heaviest Build 53 | 11 53 51 Greatest Support 40 | 20 40 40 Greatest Overweight (x) 4 | . 4 2 Average Overweight (x) 1 | . 1 1 Largest Inventory Capacity 20 | . 20 20 Average Capacity 18 | . 18 20 Most Carried 20 | . 20 20 Average Carried 15 | . 13 19 Final Capacity 20 | 8 20 20 Final Carried 20 | 6 20 20 Class Distribution -------------------- 89% | Mutant 10% | Scavenger-Mutant Dominant Class ---------------- Mutant | -10/Materials Mutant | -10/Mines Resources | -11 -10 -10 ----------- Run | Jun Mat Min Matter Collected 932 | 200 702 30 Remotely . | . . . Salvage Created 603 | . 534 69 Parts 52 | . 51 1 Haulers Intercepted 1 | . 1 . Recyclers Shooed 1 | . 1 . Parts Field Recycled . | . . . Retrieved Matter . | . . . Parts Self-Destructed . | . . . Prevented . | . . . Kills | -11 -10 -10 ------- Run | Jun Mat Min Combat Hostiles Destroyed 17 | . 16 1 Guns 10 | . 9 1 Cannons 6 | . 6 . Classes Destroyed 7 | . 7 . Worker 4 | . 4 . Builder 3 | . 3 . Hauler 1 | . 1 . Recycler 2 | . 1 1 Watcher 1 | . 1 . Swarmer 13 | . 12 1 Grunt 4 | . 4 . Best Kill Streak 5 | . 5 1 Combat Bots Only 4 | . 4 1 Max Kills in Single Turn 1 | . 1 1 Gunslinging . | . . . Exploded . | . . . Melee . | . . . Uniques/NPCs Destroyed . | . . . Combat | -11 -10 -10 -------- Run | Jun Mat Min Damage Taken 1364 | . 1247 117 Core 250 | . 236 14 Absorbed by Shields . | . . . Core Remaining (%) 100 | 100 . . Volleys Fired 90 | . 86 4 Largest 2 | . 2 1 Hottest 76 | . 76 50 Shots Fired 121 | . 117 4 Gun 87 | . 83 4 Cannon 34 | . 34 . Launcher . | . . . Special . | . . . Kinetic 103 | . 103 . Thermal 18 | . 14 4 Explosive . | . . . Electromagnetic . | . . . Robot Hit Streak 7 | . 7 4 Robot Miss Streak 6 | . 6 1 Penetration Max . | . . . Secondary Targets 4 | . 4 . Max Gunslinging Chain 1 | . 1 . Shots Hit Robots 67 | . 64 3 Core Hits 31 | . 30 1 Critical Kills . | . . . Critical Parts Destroyed 1 | . . 1 Critical Strikes 4 | . 1 3 Burn 2 | . . 2 Blast 1 | . 1 . Smash 1 | . . 1 Melee Attacks 6 | . 5 1 Impact 6 | . 5 1 Slashing . | . . . Piercing . | . . . Sneak Attacks 1 | . 1 . Combat Hostiles . | . . . Follow-up Attacks . | . . . Damage Inflicted 1162 | . 1083 79 Guns 599 | . 561 38 Cannons 394 | . 394 . Explosions . | . . . Melee 169 | . 128 41 Ramming . | . . . Kinetic 796 | . 796 . Thermal 197 | . 159 38 Explosive . | . . . Electromagnetic . | . . . Impact 169 | . 128 41 Slashing . | . . . Piercing . | . . . Highest Corruption . | . . . Average Corruption . | . . . Corruption Purged . | . . . Corruption Blocked . | . . . Overload Shots . | . . . Overflow Damage 99 | . 58 41 Projectiles . | . . . Explosions . | . . . Melee 99 | . 58 41 Knockbacks 4 | . 4 . Impact 1 | . 1 . Kinetic 3 | . 3 . Secondary . | . . . Self-Inflicted Damage . | . . . Shots . | . . . Rammed . | . . . Targets Rammed . | . . . Kicked . | . . . Crushed . | . . . Highest Temperature 460 | . 460 12 Average Temperature 205 | . 221 8 Received Heat Transfer 480 | . 480 . Effects 3 | . 3 . Shutdowns 1 | . 1 . Energy Bleed 1 | . 1 . Damage (major) 1 | . 1 . Siege Activations . | . . . Robots Corrupted . | . . . Combat Hostiles . | . . . Parts Fried 2 | . . 2 Impact Corruptions 3 | . 2 1 Robots Melted . | . . . Combat Hostiles . | . . . Parts Melted 1 | . 1 . Heat Transferred 666 | . 407 259 Parts Sabotaged . | . . . Parts Stolen . | . . . Parts Stripped . | . . . Power Chain Reactions . | . . . Missiles Intercepted . | . . . Alert | -11 -10 -10 ------- Run | Jun Mat Min Peak Influence 355 | . 355 113 Initial 78 | . . 78 Average 165 | . 217 76 Maximum Alert Level 1 | . 1 . Low Security (%) 62 | . 40 100 Level 1 37 | . 59 . Level 2 . | . . . Level 3 . | . . . Level 4 . | . . . Level 5 . | . . . High Security . | . . . Max Security . | . . . Squads Dispatched 2 | . 2 . Investigation 1 | . 1 . Extermination . | . . . Reinforcement 1 | . 1 . Assault . | . . . Garrison . | . . . Intercept . | . . . Searches Triggered . | . . . Construction Impeded . | . . . Haulers Reinforced . | . . . Active Scanning Responses . | . . . Cargo Convoy Interrupts . | . . . Stealth | -11 -10 -10 --------- Run | Jun Mat Min Distress Signals 2 | . 2 . Communications Jammed . | . . . Distress Signals . | . . . Times Spotted 32 | . 27 5 Peak Tracking Total 7 | . 7 2 Tactical Retreats 4 | . 3 1 Traps | -11 -10 -10 ------- Run | Jun Mat Min Traps Triggered 3 | . 1 2 Indirectly . | . . . Trap Hack Attempts . | . . . Triggered . | . . . Disarmed . | . . . Reprogrammed . | . . . Reused . | . . . Traps Extracted . | . . . Installed . | . . . Triggered . | . . . Machines | -11 -10 -10 ---------- Run | Jun Mat Min Machines Disabled . | . . . Max in Single Turn . | . . . Machines Repaired . | . . . Machines Sabotaged . | . . . Overloaded Fab Kills . | . . . Hacking | -11 -10 -10 --------- Run | Jun Mat Min Machines Accessed 3 | . 2 1 Terminals 2 | . 2 . Fabricators . | . . . Repair Stations . | . . . Recycling Units . | . . . Scanalyzers . | . . . Garrison Access . | . . . Total Hacks 6 | . 5 1 Successful 1 | . . 1 Failed 5 | . 5 . Catastrophic . | . . . Database Lockouts . | . . . Manual 5 | . 5 . Terminals 5 | . 5 . Fabricators . | . . . Repair Stations . | . . . Recycling Units . | . . . Scanalyzers . | . . . Garrison Access . | . . . Terminal Hacks 1 | . . 1 Open Door 1 | . . 1 Fabricator Hacks . | . . . Repair Station Hacks . | . . . Recycling Unit Hacks . | . . . Scanalyzer . | . . . Garrison Access Hacks . | . . . Unauthorized Hacks . | . . . Terminals . | . . . Fabricators . | . . . Repair Stations . | . . . Recycling Units . | . . . Scanalyzers . | . . . Garrison Access . | . . . Data Cores Recovered . | . . . Used . | . . . Hacking Detections 2 | . 2 . Full Trace Events 1 | . 1 . Feedback Events . | . . . Feedback Blocked . | . . . Robot Schematics Acquired . | . . . Robots Built . | . . . Authchips . | . . . Time . | . . . Total Robot Build Rating . | . . . Part Schematics Acquired . | . . . Parts Built . | . . . Authchips . | . . . Time . | . . . Total Part Build Rating . | . . . Parts Repaired . | . . . Time . | . . . Parts Recycled . | . . . Recycled Matter . | . . . Retrieved Matter . | . . . Retrieved Components . | . . . Parts Scanalyzed . | . . . Part Schematics Acquired . | . . . Parts Damaged . | . . . Bothacking | -11 -10 -10 ------------ Run | Jun Mat Min Used RIF Installer . | . . . Robots Hacked . | . . . Non-combat . | . . . Combat . | . . . Robot Hacks Applied . | . . . Relay Couplers Released . | . . . Fabnet Peak Effective % . | . . . Robots Rewired . | . . . Allies Hacked . | . . . Hacks Repelled . | . . . Allies | -11 -10 -10 -------- Run | Jun Mat Min Total Allies . | . . . Largest Group . | . . . Highest-Rated Group . | . . . Highest-Rated Ally . | . . . Total Orders . | . . . Ally Attacks . | . . . Total Damage . | . . . Kills . | . . . Allies Corrupted . | . . . Allies Melted . | . . . Intel | -11 -10 -10 ------- Run | Jun Mat Min Robot Analysis Total . | . . . Derelict Logs Recovered 1 | . . 1 Drone Launches . | . . . Drone Recoveries . | . . . Exploration | -11 -10 -10 ------------- Run | Jun Mat Min Turns Passed 1520 | . 956 564 Spaces Moved 789 | 1 491 297 Core . | . . . Treads 255 | . 86 169 Legs 28 | 1 27 . Wheels 506 | . 378 128 Hover . | . . . Flight . | . . . Fastest Speed 105 | 120 105 110 Average Speed 151 | 120 131 183 Slowest Speed 320 | 120 320 240 Overloaded Moves . | . . . Propulsion Burnouts . | . . . Robots Hopped . | . . . Cave-ins Triggered . | . . . Exploration Rate (%) 43 | 2 64 64 Regions Visited 2 Branch Regions 1 Pre-discovered Areas 2 | . . 2 Known Exits Taken . | . . . Unknown Exits Taken 2 | 1 1 . Scrap Searched 1 | . . 1 Spaces Dug 3 | . 3 . Terrain Destroyed 5 | . 5 . Melee 3 | . 3 . Projectile 2 | . 2 . AOE . | . . . Terrain Rammed . | . . . Walls Destroyed . | . . . Machines Disabled . | . . . Actions | -11 -10 -10 --------- Run | Jun Mat Min Total 992 | . 682 310 Wait 19 | . 19 . Move 787 | . 490 297 Hop . | . . . Pick Up 30 | . 28 2 Fast Attach 7 | . 7 . Attach 13 | . 13 . Detach 6 | . 6 . Swap 14 | . 11 3 Drop 20 | . 17 3 Fire 90 | . 86 4 Melee 6 | . 5 1 Ram . | . . . Kick . | . . . Crush . | . . . Escape Stasis . | . . . Rewire . | . . . Trap . | . . . Miscellaneous . | . . . Route ------- -11/Junkyard -10/Materials (discovered 4 exits: [*Mat x2] / *Min / [*Sub]) -10/Mines History --------- Turn | Location | Event 1 | -11/Junkyard | Discovered new exit (range 0) 1 | -11/Junkyard | Entered Materials 309 | -10/Materials | Build established: Mutant 338 | -10/Materials | Discovered new exit (range 13) 495 | -10/Materials | Discovered new exit (range 3) 572 | -10/Materials | Discovered new exit (range 15) 700 | -10/Materials | Derelicts attacked the area 762 | -10/Materials | Core integrity fell below 50% 812 | -10/Materials | Core integrity fell below 20% 858 | -10/Materials | Lost 7 parts (1p2n1u3w) 914 | -10/Materials | Discovered new exit (range 10) 957 | -10/Materials | Entered Mines 1025 | -10/Mines | Met a Derelict who couldn't figure out how to use a Trap Extractor 1186 | -10/Mines | Learned location of Storage (-8) 1521 | -10/Mines | Destroyed by S-10 Pest with Light Assault Rifle Last Messages --------------- here trying to lose some heat after our second raid on Storage failed. Whatever you do stay away from that place, they've tightened security following our previous successful raids." World map updated: -8/Storage. 01188_ 1S-UU4(g): "We scattered so the Unaware couldn't effectively use their advantage in numbers, and I suggest you do the same." 01188_ 1S-UU4(g) slips back into the shadows. 01417_ K-01 Serf collects debris. 01471_ Searching scrap... 01471_ Found Terrain Scanner. 01471_ Found Lgt. Assault Rifle. 01471_ Found 31 Matter. 01471_ Found 40 Matter. 01472_ Acquired 20 matter. 01478_ Acquired derelict log, extracted data. World map confirmed: -8/Storage. 01515_ S-10 Pest destroyed. 01516_ U-05 Engineer suffers critical hit (Burn). 01520_ S-10 Pest suffers critical hit (Burn). 01520_ S-10 Pest destroyed. Map ----- +----------------------------------------------------+ | #???###### ####???????##### ###??## ## | | #???###### ####??######### ####### ### | | ##??????## ##??####### ###### ### | | ####????## ##??## #### ## | | ############ ##??## | | ########## ##??## ### | | ## ###### #### ### | | ###### #### ## ##### | | ## ## ## ##### ########### | | ##### ## ## ########## #######?### | | ##### ## ## #####?######## ###???????## | | ##?## ## #### ######??????### ####????????? | | ##### ##### ##########???## ###?????????? | | ######### #### #########???### ###??????????? | | ####### ##???########??????????? | | ###### ##????######???????????? | | ##### ### ## ##?????????????????????? | | = #### ### ##%[##?????????????????????? | | ##### #####!%##?????????????????????? | | ############# ##?????????????????????? | | ###########?######### ##?????????????????????? | | ###########?########## ##?????????????????????? | | #######?????### ##????? ####???????????? | | #######?????## ###### ##????? #####??????????? | | ##???#### ###### ####? ###??????????? | | ##???#### #??## @### ##??????????? | | ##### ##### #### * ##??????????? | | # ##### ### #### s[%[ ##??????????? | | # ### #######=% ###??????????? | | # ####### ###### ##### ###??????????? | | # ####### ####??## ######## ##??????????? | | # ??????## ##????### ####### ??????????? | | ??????## ##???????## ###?????? ??????????? | | # ??????## ############ ##??????? ???????????? | | ??????## ############ ##???????????????????? | | ##???## ###???????????????????? | | ###??## ############# ###???????????????????? | | ###### ############## ##????????????????????? | | ##### ##?????????### ###????????????????????? | | ##??????????######????????????????????? | | #######??????????#####?????????????????????? | | %#######????????????????????????????????????? | | ## #?????????????????????????????????????????? | | ### ??????????????????????????????????????????? | | #### ??????????????????????????????????????????? | | ?#### ??????????????????????????????????????????? | | ??#### ?????????????????????????????????????????? | | ???### ?????????????????????????????????????????? | | ?????? ?????????????????????????????????????????? | | ?????? ##???????????????????????????????????????? | +----------------------------------------------------+ Best States ------------- Heat Dissipation 25 Energy Generation 14 Energy Capacity 250 Matter Stores 300 Matter Capacity 300 Sight Range 16 Terrain Scan Density 10 ECM Strength 1 Evasion (%) 55 Recoil Reduction 2 Item Schematics ----------------- None Robot Schematics ------------------ None Fabricated ------------ Nothing Alien Tech Used ----------------- None Achievements -------------- None Challenges ------------ None Game ------ Seed MissileCarbideThruster Manual? 0 Play Time 00:17:58 Cumulative 75.4 hours Start 2023.08.27 @ 21:17:48 End 2023.08.27 @ 21:33:34 Sessions 1 Manual Loads 0 Difficulty Rogue Special Mode None Game No. 70 Rogue 70 Adventurer 0 Explorer 0 Win Type - Total 1 Types 1/0/0/0/0/0/0/0/0 Lore% 41 Gallery% 34 Achievement% 37 Wizard Run 0 Options --------- ASCII 0 Keyboard 0 Movement Mouse Keybinds 0 Fullscreen 1 Font 16/SmallcapsGlow Map View 84x54 Tactical HUD 1 Map Filters NONE Filters NONE Steam 1 RUN: 4c353e2a-3a64-4170-8071-7b4aa75ec9a6